fUST/lending_fUST_20250309
["ID","MTS","AMOUNT","RATE_DAILY","PERIOD"]
[355753705,1741534150274,-867.6408575,0.00029,2]
[355753706,1741534150297,-587.0,0.0003045,2]
[355753707,1741534150319,-299.86534352,0.0003099,2]
[355753708,1741534150341,-509.40762997,0.000329,2]
[355753709,1741534150361,-443.30818951,0.00033875,2]
[355753710,1741534150382,-7654.78778629,0.00033947,2]
[355753711,1741534150407,-558.20050634,0.00033989,7]
[355753712,1741534150431,-500.0,0.00033989,7]
[355753713,1741534150455,-500.0,0.00033989,7]
[355753714,1741534150478,-500.0,0.00033989,2]
[355753715,1741534150507,-856.43223151,0.00033989,2]
[355753716,1741534150530,-516.30948966,0.00033989,7]
[355753717,1741534150553,-500.0,0.00033989,7]
[355753718,1741534150576,-500.0,0.00033989,2]
[355753719,1741534150599,-500.0,0.00033989,7]
[355753720,1741534150622,-500.0,0.00033989,2]
[355753721,1741534150650,-856.43223151,0.00033989,2]
[355753722,1741534150672,-500.0,0.00033989,7]
[355753723,1741534150696,-500.0,0.00033989,2]
[355753724,1741534150724,-856.43223151,0.00033989,2]
[355753725,1741534150746,-494.02839253,0.00033989,7]
[355753726,1741534150772,-500.0,0.00033989,2]
[355753727,1741534150795,-213.34479714,0.00033989,2]
[355753728,1741534150825,-856.43223151,0.00033989,2]
[355753729,1741534150852,-597.77689243,0.00033989,2]
[355753730,1741534156251,-823.0,0.00032954,2]
[355753731,1741534156309,-258.65533908,0.00033989,2]
[355753732,1741534156336,-500.0,0.00033989,2]
[355753733,1741534156362,-500.0,0.00033989,2]
[355753734,1741534156422,-856.43223151,0.00033989,2]
[355753735,1741534156449,-500.0,0.00033989,2]
[355753736,1741534156507,-856.43223151,0.00033989,2]
[355753737,1741534156565,-555.78289554,0.00033989,2]
[355753810,1741534232172,-4087.34500007,0.00033889,2]
[355753811,1741534232182,-1659.9510269,0.000339,6]
[355753813,1741534232192,-164.34,0.00033979,2]
[355753815,1741534232202,-164.34,0.00033979,2]
[355753817,1741534232211,-164.34,0.00033979,2]
[355753818,1741534232221,-164.34,0.00033979,2]
[355753820,1741534232230,-164.34,0.00033979,2]
[355753821,1741534232240,-164.34,0.00033979,2]
[355753823,1741534232249,-164.34,0.00033979,2]
[355753825,1741534232259,-164.34,0.00033979,2]
[355753827,1741534232268,-164.34,0.00033979,2]
[355753829,1741534232278,-164.34,0.00033979,2]
[355753831,1741534232287,-245.09,0.0003398,3]
[355753832,1741534232296,-735.29,0.0003398,3]
[355753833,1741534232305,-400.0,0.00033988,2]
[355753834,1741534232315,-300.64933597,0.00033989,2]
[355753835,1741534232324,-856.43223151,0.00033989,2]
[355753836,1741534232334,-856.43223151,0.00033989,2]
[355753837,1741534232343,-856.43223151,0.00033989,2]
[355753838,1741534232354,-856.43223151,0.00033989,2]
[355753839,1741534232363,-856.43223151,0.00033989,2]
[355753840,1741534232373,-856.43223151,0.00033989,2]
[355753841,1741534232382,-856.43223151,0.00033989,2]
[355753842,1741534232392,-856.43223151,0.00033989,2]
[355753843,1741534232401,-856.43223151,0.00033989,2]
[355753844,1741534232411,-856.43223151,0.00033989,2]
[355753845,1741534232420,-856.43223151,0.00033989,2]
[355753846,1741534232430,-856.43223151,0.00033989,2]
[355753847,1741534232439,-856.43223151,0.00033989,2]
[355753848,1741534232448,-856.43223151,0.00033989,2]
[355753849,1741534232458,-856.43223151,0.00033989,2]
[355753850,1741534232467,-856.43223151,0.00033989,2]
[355753851,1741534232477,-856.43223151,0.00033989,2]
[355753852,1741534232487,-856.43223151,0.00033989,2]
[355753853,1741534232496,-856.43223151,0.00033989,2]
[355753854,1741534232506,-856.43223151,0.00033989,2]
[355753855,1741534232517,-856.43223151,0.00033989,2]
[355753856,1741534232527,-911.69812267,0.00033989,2]
[355753857,1741534232536,-911.69812267,0.00033989,2]
[355753858,1741534232546,-911.69812267,0.00033989,2]
[355753859,1741534232555,-911.69812267,0.00033989,2]
[355753860,1741534232564,-911.69812267,0.00033989,2]
[355753861,1741534232574,-911.69812267,0.00033989,2]
[355753862,1741534232583,-911.69812267,0.00033989,2]
[355753863,1741534232593,-911.69812267,0.00033989,2]
[355753864,1741534232602,-911.69812267,0.00033989,2]
[355753865,1741534232612,-911.69812267,0.00033989,2]
[355753866,1741534232622,-911.69812267,0.00033989,2]
[355753867,1741534232631,-911.69812267,0.00033989,2]
[355753868,1741534232640,-911.69812267,0.00033989,2]
[355753869,1741534232650,-911.69812267,0.00033989,2]
[355753870,1741534232659,-911.69812267,0.00033989,2]
[355753871,1741534232669,-911.69812267,0.00033989,2]
[355753872,1741534232678,-911.69812267,0.00033989,2]
[355753873,1741534232687,-911.69812267,0.00033989,2]
[355753874,1741534232697,-911.69812267,0.00033989,2]
[355753875,1741534232706,-911.69812267,0.00033989,2]
[355753876,1741534232716,-911.69812267,0.00033989,2]
[355753877,1741534232726,-911.69812267,0.00033989,2]
[355753878,1741534232736,-911.69812267,0.00033989,2]
[355753879,1741534232745,-911.69812267,0.00033989,2]
[355753880,1741534232755,-911.69812267,0.00033989,2]
[355753881,1741534232764,-911.69812267,0.00033989,2]
[355753882,1741534232774,-911.69812267,0.00033989,2]
[355753883,1741534232783,-903.0152834,0.00033989,2]
[355753884,1741534232793,-903.0152834,0.00033989,2]
[355753885,1741534232803,-903.0152834,0.00033989,2]
[355753886,1741534232813,-903.0152834,0.00033989,2]
[355753887,1741534232822,-903.0152834,0.00033989,2]
[355753888,1741534232832,-903.0152834,0.00033989,2]
[355753889,1741534232841,-903.0152834,0.00033989,2]
[355753890,1741534232850,-903.0152834,0.00033989,2]
[355753891,1741534232860,-903.0152834,0.00033989,2]
[355753892,1741534232870,-903.0152834,0.00033989,2]
[355753893,1741534232879,-903.0152834,0.00033989,2]
[355753894,1741534232888,-903.0152834,0.00033989,2]
[355753895,1741534232897,-903.0152834,0.00033989,2]
[355753896,1741534232907,-903.0152834,0.00033989,2]
[355753897,1741534232916,-903.0152834,0.00033989,2]
[355753898,1741534232926,-903.0152834,0.00033989,2]
[355753899,1741534232939,-903.0152834,0.00033989,2]
[355753900,1741534232948,-903.0152834,0.00033989,2]
[355753901,1741534232956,-903.0152834,0.00033989,2]
[355753902,1741534232965,-1316.89728829,0.00033989,2]
[355753903,1741534232976,-1316.89728829,0.00033989,2]
[355753904,1741534232986,-1316.89728829,0.00033989,2]
[355753905,1741534232995,-1316.89728829,0.00033989,2]
[355753906,1741534233004,-1316.89728829,0.00033989,2]
[355753907,1741534233014,-1316.89728829,0.00033989,2]
[355753908,1741534233023,-1316.89728829,0.00033989,2]
[355753909,1741534233038,-1316.89728829,0.00033989,2]
[355753910,1741534233048,-1316.89728829,0.00033989,2]
[355753911,1741534233057,-1316.89728829,0.00033989,2]
[355753912,1741534233067,-500.0,0.00033989,2]
[355753913,1741534233076,-193.98396778,0.00033989,2]
[355753914,1741534233086,-39346.2232915,0.0003399,2]
[355753915,1741534233191,-4842.40479844,0.0003399,2]
[355753916,1741534233202,-15059.72863153,0.00034,2]
[355753917,1741534233216,-99710.02748791,0.00034,2]
[355753918,1741534233226,-3234.18569224,0.00034,30]
[355753933,1741534237822,-500.0,0.00033973,5]
[355753935,1741534237832,-500.0,0.00033973,5]
[355753937,1741534237842,-500.0,0.00033988,7]
[355753938,1741534237851,-318.84343183,0.00033988,7]
[355753940,1741534237862,-620.04178846,0.00033988,7]
[355753941,1741534237871,-500.0,0.00033988,7]
[355753942,1741534237881,-500.0,0.00033988,7]
[355753943,1741534237892,-1188.6339193,0.00034,30]
[355753944,1741534237908,-39669.35038846,0.00034,30]
[355753945,1741534237918,-620.98,0.00034,30]
[355753946,1741534237929,-1331.92,0.00034,30]
[355753947,1741534237942,-167.811582,0.00034198,2]
[355753948,1741534237952,-300.0,0.00034214,2]
[355753949,1741534237961,-167.811582,0.00034604,2]
[355753950,1741534237972,-3117.86627139,0.0003487,4]
[355753951,1741534237982,-4842.40479844,0.00034879,2]
[355753952,1741534237992,-78692.446583,0.00034889,2]
[355753953,1741534238002,-2421.20239922,0.00034889,2]
[355753954,1741534238012,-500.0,0.00034891,5]
[355753955,1741534238022,-514.82396607,0.00034891,3]
[355753956,1741534238032,-500.0,0.00034891,5]
[355753958,1741534238042,-500.0,0.00034891,2]
[355753960,1741534238052,-500.0,0.00034891,5]
[355753962,1741534238062,-500.0,0.00034891,5]
[355753964,1741534238071,-159.89,0.00034891,5]
[355753966,1741534238080,-513.87258484,0.00034891,5]
[355753968,1741534238089,-500.0,0.00034891,2]
[355753969,1741534238099,-500.0,0.00034891,5]
[355753970,1741534238109,-500.0,0.00034891,2]
[355753971,1741534238118,-150.771,0.00035,5]
[355753972,1741534238128,-10000.79174567,0.00035,3]
[355753973,1741534238136,-15555.67399697,0.00035,3]
[355753974,1741534238146,-167.811582,0.00035009,2]
[355753975,1741534238155,-2421.20239922,0.00035126,2]
[355753976,1741534238165,-218.22926353,0.00035136,5]
[355753977,1741534238175,-5926.15401835,0.00035261,2]
[355753978,1741534238189,-490.18,0.0003535,3]
[355753979,1741534238199,-167.811582,0.00035415,2]
[355753980,1741534238209,-167.811582,0.0003582,2]
[355753981,1741534238219,-415.43421,0.0003589,2]
[355753982,1741534238230,-224.86901054,0.00036,30]
[355753983,1741534238239,-7037.60787178,0.00036,2]
[355753984,1741534238250,-422.07952278,0.000362,98]
[355753985,1741534238365,-200.94686148,0.0003621,2]
[355753986,1741534238376,-261.37310989,0.0003624,2]
[355753987,1741534238386,-4087.34500002,0.00036274,2]
[355753988,1741534238396,-1331.92,0.000363,30]
[355753989,1741534238406,-560.0,0.00036481,2]
[355753990,1741534238416,-1081.8196947,0.00036487,2]
[355753991,1741534238426,-620.98,0.000365,30]
[355753992,1741534238436,-44092.17,0.000367,30]
[355753993,1741534238446,-873.10277877,0.00036795,2]
[355753994,1741534238455,-4008.16646819,0.00037,5]
[355753995,1741534238464,-366.17646844,0.00037031,2]
[355753996,1741534238475,-600.0,0.00037063,2]
[355753997,1741534238485,-2421.20239922,0.00037068,3]
[355753998,1741534238495,-500.0,0.00037073,5]
[355753999,1741534238505,-294.11,0.00037075,3]
[355754000,1741534238515,-151.0,0.00037076,2]
[355754001,1741534238525,-39346.2232915,0.00037078,3]
[355754002,1741534238535,-1280.67,0.000371,14]
[355754003,1741534238546,-24900.0,0.00037109,2]
[355754004,1741534238556,-622.2,0.00037118,2]
[355754005,1741534238567,-645.2214,0.00037173,2]
[355754006,1741534238576,-790.88,0.000372,30]
[355754007,1741534238587,-285.18,0.000372,30]
[355754008,1741534238597,-669.0945918,0.00037228,2]
[355754009,1741534238606,-693.8510917,0.00037283,2]
[355754010,1741534238616,-1225.87650093,0.00037338,2]
[355754011,1741534238626,-156.587,0.00037624,2]
[355754012,1741534238636,-297.99655969,0.00037638,5]
[355754013,1741534238647,-422.07952278,0.00037642,106]
[355754014,1741534238656,-200.0,0.00037667,2]
[355754015,1741534238668,-500.0,0.000378,5]
[355754016,1741534238680,-1002.40982123,0.000378,2]
[355754017,1741534238690,-509.40762997,0.000379,2]
[355754018,1741534238700,-219.75382492,0.00038056,5]
[355754019,1741534238710,-162.380719,0.00038172,2]
[355754020,1741534238719,-1331.92,0.000382,30]
[355754021,1741534238731,-620.98,0.000385,30]
[355754022,1741534238743,-4087.34500002,0.00038658,2]
[355754023,1741534238753,-210.87136356,0.0003872,2]
[355754024,1741534238762,-783.0,0.00039157,5]
[355754025,1741534238772,-44092.17,0.000393,30]
[355754026,1741534238781,-366.17646841,0.00039367,2]
[355754027,1741534238791,-506.25357674,0.00039452,5]
[355754028,1741534238800,-500.0,0.0003968,5]
[355754029,1741534238810,-1280.67,0.000397,14]
[355754030,1741534238820,-1183.81949945,0.000398,60]
[355754031,1741534238830,-2421.20239922,0.00039975,3]
[355754032,1741534238840,-39346.2232915,0.0003999,3]
[355754033,1741534238850,-2421.20239922,0.0003999,3]
[355754034,1741534238859,-6040.67184352,0.0004,15]
[355754035,1741534238869,-285.18,0.0004,30]
[355754036,1741534238879,-508.60376278,0.0004,2]
[355754037,1741534238889,-6039.46792288,0.0004,15]
[355754038,1741534238898,-200.0,0.00040333,2]
[355754039,1741534238908,-1000.0,0.0004037,2]
[355754040,1741534238917,-1000.0,0.0004037,5]
[355754041,1741534238927,-1000.0,0.0004037,5]
[355754042,1741534238937,-500.0,0.0004037,2]
[355754043,1741534238950,-790.88,0.000404,30]
[355754044,1741534238959,-150.771,0.00040985,14]
[355754045,1741534238969,-24346.85509982,0.00041,2]
[355754046,1741534238981,-168.12041194,0.00041,15]
[355754047,1741534238992,-4087.34500002,0.00041043,28]
[355754048,1741534239002,-160.0,0.0004116,2]
[355754049,1741534239012,-415.43421,0.00041211,2]
[355754050,1741534239023,-500.0,0.0004125,10]
[355754051,1741534239033,-500.0,0.0004125,2]
[355754052,1741534239042,-500.0,0.0004125,10]
[355754053,1741534239051,-2198.64497306,0.0004129,2]
[355754054,1741534239061,-213.98,0.00041342,30]
[355754055,1741534239071,-20604.614471,0.00041343,120]
[355754056,1741534239081,-2786.4507329,0.00041343,2]
[355754057,1741534239091,-184.3200936,0.00041343,2]
[355754058,1741534239101,-225.389919,0.00041373,10]
[355754059,1741534239110,-500.0,0.00041373,10]
[355754060,1741534239120,-2421.20239922,0.0004138,3]
[355754061,1741534239130,-39346.2232915,0.0004139,3]
[355754062,1741534239142,-2421.20239922,0.0004139,3]
[355754063,1741534239153,-422.07952278,0.00041395,120]
[355754064,1741534239162,-1101.73,0.000414,30]
[355754065,1741534239172,-1331.92,0.000414,30]
[355754066,1741534239183,-500.0,0.000415,10]
[355754067,1741534239192,-611.61033219,0.000415,10]
[355754068,1741534239202,-176.54104161,0.000415,10]
[355754069,1741534239212,-500.0,0.000415,10]
[355754070,1741534239222,-500.0,0.000415,2]
[355754071,1741534239232,-500.0,0.000415,10]
[355754072,1741534239242,-181.909271,0.00041674,2]
[355754073,1741534239252,-181.909271,0.00041674,120]
[355754074,1741534239261,-620.98,0.000417,30]
[355754075,1741534239272,-366.17646841,0.00041702,2]
[355754076,1741534239281,-200.0,0.00042,2]
[355754077,1741534239291,-1280.67,0.00042,14]
[355754078,1741534239301,-1097.0,0.00042029,5]
[355754079,1741534239311,-6040.67184352,0.000424,15]
[355754080,1741534239321,-44092.17,0.000424,30]
[355754081,1741534239330,-6039.46792288,0.000424,15]
[355754082,1741534239340,-500.0,0.00042552,10]
[355754083,1741534239350,-213.98,0.00042712,30]
[355754084,1741534239360,-2421.20239922,0.00042964,3]
[355754085,1741534239369,-39346.2232915,0.00042974,3]
[355754086,1741534239379,-10000.0,0.00043,8]
[355754087,1741534239389,-200.0,0.00043,2]
[355754088,1741534239399,-285.18,0.00043,30]
[355754089,1741534239409,-508.15869348,0.00043279,10]
[355754090,1741534239419,-366.17646841,0.00044038,2]
[355754091,1741534239429,-213.98,0.00044082,30]
[355754092,1741534239439,-790.88,0.000441,30]
[355754093,1741534239448,-2421.20239922,0.0004479,3]
[355754094,1741534239459,-6544.06116382,0.000448,19]
[355754095,1741534239469,-6542.75691645,0.000448,19]
[355754096,1741534239478,-50000.0,0.000449,5]
[355754097,1741534239488,-50000.0,0.000449,5]
[355754098,1741534239498,-35131.0,0.000449,5]
[355754099,1741534239508,-164.0,0.00045,90]
[355754100,1741534239519,-1536.0,0.00045111,5]
[355754101,1741534239528,-422.07952278,0.00045147,120]
[355754102,1741534239538,-12847.9284,0.00045205,2]
[355754103,1741534239547,-213.98,0.00045452,30]
[355754104,1741534239558,-18033.41964475,0.000455,8]
[355754105,1741534239568,-200.0,0.00045667,2]
[355754106,1741534239578,-164.0,0.00045685,90]
[355754107,1741534239587,-1280.67,0.000457,30]
[355754108,1741534239597,-2000.0,0.00045907,4]
[355754109,1741534239607,-45831.04504,0.00045935,30]
[355754110,1741534239617,-2198.64497305,0.00045936,2]
[355754111,1741534239627,-612.17089826,0.00045973,10]
[355754112,1741534239638,-513.63718343,0.00045973,10]
[355754113,1741534239648,-2421.20239922,0.0004599,4]
[355754114,1741534239658,-59366.52731065,0.00046,46]
[355754115,1741534239667,-200.0,0.00046,45]
[355754116,1741534239677,-3000.0,0.00046,120]
[355754118,1741534239687,-3000.0,0.00046,7]
[355754119,1741534239696,-450.7743212,0.00046,2]
[355754120,1741534239706,-1021.40102351,0.00046,120]
[355754121,1741534239716,-1391.0,0.000461,120]
[355754122,1741534239726,-416.66666667,0.0004624,2]
[355754123,1741534239736,-15555.67399697,0.0004626,2]
[355754124,1741534239745,-2421.20239922,0.00046289,4]
[355754125,1741534239755,-285.18,0.000463,30]
[355754127,1741534239765,-366.17646841,0.00046373,2]
[355754128,1741534239775,-491.89309507,0.00046375,120]
[355754130,1741534239784,-491.89309507,0.00046375,120]
[355754132,1741534239795,-491.89309507,0.00046375,120]
[355754134,1741534239804,-491.89309507,0.00046375,120]
[355754135,1741534239814,-491.89309507,0.00046375,120]
[355754137,1741534239823,-491.89309507,0.00046375,120]
[355754138,1741534239833,-491.89309507,0.00046375,120]
[355754140,1741534239843,-491.89309507,0.00046375,120]
[355754142,1741534239853,-491.89309507,0.00046375,120]
[355754143,1741534239863,-491.89309507,0.00046375,120]
[355754144,1741534239872,-491.89309507,0.00046375,120]
[355754147,1741534239964,-491.89309507,0.00046375,120]
[355754148,1741534239975,-491.89309507,0.00046375,120]
[355754149,1741534239985,-491.89309507,0.00046375,120]
[355754150,1741534239995,-491.89309507,0.00046375,120]
[355754151,1741534240005,-491.89309507,0.00046375,120]
[355754152,1741534240016,-491.89309507,0.00046375,120]
[355754153,1741534240026,-491.89309507,0.00046375,120]
[355754154,1741534240035,-491.89309507,0.00046375,120]
[355754155,1741534240045,-491.89,0.00046375,120]
[355754156,1741534240054,-1147.75055515,0.00046375,120]
[355754158,1741534240064,-1147.75055515,0.00046375,120]
[355754160,1741534240074,-1147.75055515,0.00046375,120]
[355754161,1741534240083,-1147.75055515,0.00046375,120]
[355754163,1741534240093,-1147.75055515,0.00046375,120]
[355754165,1741534240103,-1147.75055515,0.00046375,120]
[355754167,1741534240113,-1147.75055515,0.00046375,120]
[355754168,1741534240124,-1147.75055515,0.00046375,120]
[355754169,1741534240134,-1147.75055515,0.00046375,120]
[355754170,1741534240144,-1147.75055515,0.00046375,120]
[355754171,1741534240154,-1147.75055515,0.00046375,120]
[355754172,1741534240164,-1147.75055515,0.00046375,120]
[355754173,1741534240174,-1147.75055515,0.00046375,120]
[355754174,1741534240193,-1147.75055515,0.00046375,120]
[355754175,1741534240207,-1147.75055515,0.00046375,120]
[355754176,1741534240217,-179.25707241,0.00046402,30]
[355754177,1741534240229,-1147.75055515,0.00046464,120]
[355754178,1741534240239,-2421.20239922,0.00046465,4]
[355754180,1741534240249,-9684.80959688,0.00046465,4]
[355754181,1741534240260,-222000.0,0.00046475,2]
[355754182,1741534240270,-3598.65930831,0.000465,7]
[355754183,1741534240280,-5000.5049057,0.000465,120]
[355754184,1741534240291,-200.0,0.000465,120]
[355754185,1741534240302,-311.14859491,0.000465,30]
[355754186,1741534240312,-415.43421,0.00046532,2]
[355754187,1741534240322,-514.57010581,0.00046573,10]
[355754188,1741534240332,-212.98018388,0.00046575,120]
[355754189,1741534240343,-500.0,0.00046575,15]
[355754190,1741534240353,-500.0,0.00046575,120]
[355754191,1741534240363,-500.0,0.00046575,120]
[355754192,1741534240373,-500.0,0.00046575,120]
[355754193,1741534240383,-500.0,0.00046575,120]
[355754194,1741534240394,-508.58618102,0.00046575,120]
[355754195,1741534240404,-500.0,0.00046575,120]
[355754196,1741534240415,-662.36,0.00046575,120]
[355754197,1741534240426,-338.44191962,0.00046575,120]
[355754198,1741534240437,-537.85084321,0.00046575,120]
[355754199,1741534240447,-500.0,0.00046575,120]
[355754200,1741534240458,-537.53910016,0.00046575,120]
[355754201,1741534240468,-500.0,0.00046575,120]
[355754202,1741534240478,-500.0,0.00046575,120]
[355754203,1741534240488,-500.0,0.00046575,120]
[355754204,1741534240498,-500.0,0.00046575,120]
[355754205,1741534240508,-500.0,0.00046575,120]
[355754206,1741534240518,-500.0,0.00046575,120]
[355754207,1741534240528,-500.0,0.00046575,120]
[355754208,1741534240539,-500.0,0.00046575,120]
[355754209,1741534240550,-750.57,0.00046575,120]
[355754210,1741534240559,-500.0,0.00046575,120]
[355754211,1741534240569,-500.0,0.00046575,120]
[355754212,1741534240579,-500.0,0.00046575,120]
[355754213,1741534240590,-500.0,0.00046575,120]
[355754214,1741534240600,-500.0,0.00046575,120]
[355754215,1741534240610,-531.02591769,0.00046575,120]
[355754216,1741534240620,-500.0,0.00046575,120]
[355754217,1741534240630,-500.0,0.00046575,120]
[355754218,1741534240640,-500.0,0.00046575,120]
[355754219,1741534240650,-500.0,0.00046575,120]
[355754220,1741534240660,-500.0,0.00046575,120]
[355754221,1741534240670,-703.54,0.00046575,120]
[355754222,1741534240680,-500.0,0.00046575,120]
[355754223,1741534240703,-500.0,0.00046575,15]
[355754224,1741534240722,-500.0,0.00046575,120]
[355754225,1741534240739,-639.77,0.00046575,120]
[355754226,1741534240755,-500.0,0.00046575,120]
[355754227,1741534240771,-1836.77,0.00046575,2]
[355754228,1741534240788,-271.51044023,0.00046575,120]
[355754229,1741534240805,-500.0,0.00046575,120]
[355754230,1741534240822,-500.0,0.00046575,120]
[355754231,1741534240838,-500.0,0.00046575,120]
[355754232,1741534240852,-500.0,0.00046575,120]
[355754233,1741534240869,-1405.26,0.00046575,120]
[355754234,1741534240884,-500.0,0.00046575,120]
[355754235,1741534240900,-3010.66,0.00046575,120]
[355754236,1741534240915,-500.0,0.00046575,120]
[355754237,1741534240926,-500.0,0.00046575,120]
[355754238,1741534240946,-500.0,0.00046575,120]
[355754239,1741534240960,-500.0,0.00046575,120]
[355754240,1741534240975,-699.68,0.00046575,120]
[355754241,1741534240990,-500.0,0.00046575,120]
[355754242,1741534241006,-383.398859,0.00046575,120]
[355754243,1741534241023,-500.0,0.00046575,120]
[355754244,1741534241038,-500.0,0.00046575,120]
[355754245,1741534241050,-500.0,0.00046575,120]
[355754246,1741534241061,-500.0,0.00046575,2]
[355754247,1741534241075,-500.0,0.00046575,120]
[355754248,1741534241091,-500.0,0.00046575,120]
[355754249,1741534241103,-500.0,0.00046575,120]
[355754250,1741534241117,-500.0,0.00046575,120]
[355754251,1741534241131,-500.0,0.00046575,120]
[355754252,1741534241145,-500.0,0.00046575,120]
[355754253,1741534241158,-500.0,0.00046575,120]
[355754254,1741534241171,-500.0,0.00046575,120]
[355754255,1741534241184,-500.0,0.00046575,120]
[355754256,1741534241204,-707.27,0.00046575,120]
[355754257,1741534241220,-500.0,0.00046575,120]
[355754258,1741534241235,-500.0,0.00046575,120]
[355754259,1741534241250,-157.98951824,0.00046575,120]
[355754260,1741534241265,-1010.73,0.00046575,120]
[355754261,1741534241281,-500.0,0.00046575,120]
[355754262,1741534241296,-500.0,0.00046575,120]
[355754263,1741534241310,-500.0,0.00046575,120]
[355754264,1741534241324,-500.0,0.00046575,7]
[355754265,1741534241337,-526.4537343,0.00046575,120]
[355754266,1741534241351,-519.76032886,0.00046575,120]
[355754267,1741534241364,-500.0,0.00046575,120]
[355754268,1741534241378,-500.0,0.00046575,120]
[355754269,1741534241391,-517.01164811,0.00046575,120]
[355754270,1741534241405,-500.0,0.00046575,120]
[355754271,1741534241418,-500.0,0.00046575,120]
[355754272,1741534241431,-500.0,0.00046575,120]
[355754273,1741534241445,-500.0,0.00046575,120]
[355754274,1741534241458,-500.0,0.00046575,2]
[355754275,1741534241471,-500.0,0.00046575,120]
[355754276,1741534241486,-500.0,0.00046575,120]
[355754277,1741534241500,-500.0,0.00046575,120]
[355754278,1741534241513,-500.0,0.00046575,120]
[355754279,1741534241526,-506.56562248,0.00046575,120]
[355754280,1741534241540,-500.0,0.00046575,120]
[355754281,1741534241554,-500.0,0.00046575,120]
[355754282,1741534241567,-500.0,0.00046575,120]
[355754283,1741534241580,-500.0,0.00046575,120]
[355754284,1741534241593,-500.0,0.00046575,120]
[355754285,1741534241606,-500.0,0.00046575,120]
[355754286,1741534241620,-532.18086067,0.00046575,120]
[355754287,1741534241634,-500.0,0.00046575,120]
[355754288,1741534241645,-500.0,0.00046575,120]
[355754289,1741534241655,-500.0,0.00046575,120]
[355754290,1741534241664,-500.0,0.00046575,120]
[355754291,1741534241673,-500.0,0.00046575,120]
[355754292,1741534241683,-500.0,0.00046575,120]
[355754293,1741534241839,-500.0,0.00046575,120]
[355754294,1741534241855,-500.0,0.00046575,120]
[355754295,1741534241865,-500.0,0.00046575,120]
[355754296,1741534241875,-500.0,0.00046575,120]
[355754297,1741534241886,-500.0,0.00046575,120]
[355754298,1741534241896,-500.0,0.00046575,120]
[355754299,1741534241906,-523.8,0.00046575,120]
[355754300,1741534241915,-539.27286371,0.00046575,120]
[355754301,1741534241926,-500.0,0.00046575,120]
[355754302,1741534241938,-500.0,0.00046575,120]
[355754303,1741534241948,-500.0,0.00046575,120]
[355754304,1741534241958,-500.0,0.00046575,120]
[355754305,1741534241968,-500.0,0.00046575,120]
[355754306,1741534241980,-500.0,0.00046575,120]
[355754307,1741534241989,-509.66842871,0.00046575,120]
[355754308,1741534241999,-500.0,0.00046575,120]
[355754309,1741534242009,-500.0,0.00046575,120]
[355754310,1741534242019,-182.89670673,0.00046575,120]
[355754311,1741534242029,-500.0,0.00046575,120]
[355754312,1741534242038,-500.0,0.00046575,120]
[355754313,1741534242048,-500.0,0.00046575,120]
[355754314,1741534242057,-500.0,0.00046575,120]
[355754315,1741534242067,-500.0,0.00046575,120]
[355754316,1741534242076,-500.0,0.00046575,120]
[355754317,1741534242085,-500.0,0.00046575,120]
[355754318,1741534242094,-500.0,0.00046575,120]
[355754319,1741534242104,-500.0,0.00046575,120]
[355754320,1741534242114,-500.0,0.00046575,120]
[355754321,1741534242124,-500.0,0.00046575,120]
[355754322,1741534242133,-500.0,0.00046575,120]
[355754323,1741534242143,-500.0,0.00046575,120]
[355754324,1741534242154,-775.64,0.00046575,120]